[Event "*** SCC Grand Prix: Titled Tuesday Blitz"]
[Site "Chess.com"]
[Date "2020.06.09"]
[Round "9"]
[White "krasavetc"]
[Black "ElviraBerend"]
[Result "0-1"]
[WhiteElo "2228"]
[BlackElo "2393"]
[TimeControl "180+1"]
[EndTime "10:48:06 PDT"]
[Termination "ElviraBerend won on time"]

1. e4 {[%clk 0:03:00.9]} 1... e5 {[%clk 0:02:58.8]} 2. Nf3 {[%clk 0:03:00.4]}
2... Nc6 {[%clk 0:02:57.7]} 3. Bc4 {[%clk 0:02:59.8]} 3... Bc5 {[%clk
0:02:56.3]} 4. d4 {[%clk 0:02:59.7]} 4... exd4 {[%clk 0:02:54.3]} 5. Ng5 {[%clk
0:02:58.4]} 5... Nh6 {[%clk 0:02:52.2]} 6. Nxf7 {[%clk 0:02:58]} 6... Nxf7
{[%clk 0:02:51.3]} 7. Bxf7+ {[%clk 0:02:58.9]} 7... Kxf7 {[%clk 0:02:50.8]} 8.
Qh5+ {[%clk 0:02:59.8]} 8... g6 {[%clk 0:02:50.2]} 9. Qxc5 {[%clk 0:03:00.7]}
9... d6 {[%clk 0:02:44.4]} 10. Qb5 {[%clk 0:03:00.1]} 10... Re8 {[%clk
0:02:42.3]} 11. Nd2 {[%clk 0:02:52.9]} 11... a6 {[%clk 0:02:39.9]} 12. Qb3+
{[%clk 0:02:52.1]} 12... Kg7 {[%clk 0:02:39]} 13. O-O {[%clk 0:02:50.6]} 13...
b5 {[%clk 0:02:34.7]} 14. f4 {[%clk 0:02:46.4]} 14... Be6 {[%clk 0:02:33.1]} 15.
Qg3 {[%clk 0:02:46.1]} 15... Bf7 {[%clk 0:02:29.6]} 16. Nf3 {[%clk 0:02:25]}
16... Rxe4 {[%clk 0:02:01.5]} 17. Ng5 {[%clk 0:02:22.8]} 17... Qe8 {[%clk
0:01:34.4]} 18. f5 {[%clk 0:02:05.2]} 18... Kg8 {[%clk 0:01:30.7]} 19. Qh3
{[%clk 0:01:56]} 19... h5 {[%clk 0:01:25.7]} 20. fxg6 {[%clk 0:01:26.4]} 20...
Bxg6 {[%clk 0:01:24.4]} 21. Nxe4 {[%clk 0:01:25.5]} 21... Qxe4 {[%clk
0:01:23.5]} 22. Bh6 {[%clk 0:01:24]} 22... Ne5 {[%clk 0:01:18.2]} 23. Rf4 {[%clk
0:01:07.4]} 23... Qe3+ {[%clk 0:01:12.9]} 24. Kh1 {[%clk 0:00:43.9]} 24... Qxh3
{[%clk 0:01:11.8]} 25. gxh3 {[%clk 0:00:44.8]} 25... Kh7 {[%clk 0:01:07.5]} 26.
Bg5 {[%clk 0:00:43.6]} 26... Bxc2 {[%clk 0:01:03.1]} 27. Rxd4 {[%clk 0:00:41.6]}
27... Rf8 {[%clk 0:00:58.2]} 28. Rc1 {[%clk 0:00:32.5]} 28... Nf3 {[%clk
0:00:45.7]} 29. Rb4 {[%clk 0:00:12.6]} 29... Bd3 {[%clk 0:00:42.3]} 30. Rxc7+
{[%clk 0:00:11.8]} 30... Kg6 {[%clk 0:00:42.5]} 31. Bc1 {[%clk 0:00:10.6]} 31...
d5 {[%clk 0:00:41.5]} 32. Rc6+ {[%clk 0:00:09.8]} 32... Kh7 {[%clk 0:00:40.5]}
33. Rxa6 {[%clk 0:00:09.1]} 33... Be4 {[%clk 0:00:39.6]} 34. Rh6+ {[%clk
0:00:06.4]} 34... Kg7 {[%clk 0:00:38.6]} 35. Rxe4 {[%clk 0:00:06.5]} 35... dxe4
{[%clk 0:00:37.2]} 36. Rxh5 {[%clk 0:00:07.1]} 36... Re8 {[%clk 0:00:36.1]} 37.
Be3 {[%clk 0:00:07]} 37... Kg6 {[%clk 0:00:35]} 38. Rxb5 {[%clk 0:00:07.3]}
38... Ne5 {[%clk 0:00:34.1]} 39. Rb4 {[%clk 0:00:06.4]} 39... Nd3 {[%clk
0:00:33.2]} 40. Rb6+ {[%clk 0:00:05.2]} 40... Kf5 {[%clk 0:00:33.5]} 41. Kg2
{[%clk 0:00:06]} 41... Rc8 {[%clk 0:00:32.4]} 42. Rb5+ {[%clk 0:00:05.3]} 42...
Ke6 {[%clk 0:00:31.5]} 43. Kg3 {[%clk 0:00:05.4]} 43... Rc2 {[%clk 0:00:31]} 44.
h4 {[%clk 0:00:05.8]} 44... Re2 {[%clk 0:00:30.3]} 45. Bg5 {[%clk 0:00:04.1]}
45... Re1 {[%clk 0:00:29.7]} 46. h5 {[%clk 0:00:03.8]} 46... Rg1+ {[%clk
0:00:29.6]} 47. Kh4 {[%clk 0:00:03.7]} 47... Nf2 {[%clk 0:00:29.2]} 48. Rb6+
{[%clk 0:00:04.6]} 48... Kd5 {[%clk 0:00:28.7]} 49. h6 {[%clk 0:00:05.1]} 49...
Rg2 {[%clk 0:00:25.4]} 50. Kh5 {[%clk 0:00:03.2]} 50... Rxh2+ {[%clk 0:00:24.8]}
51. Kg6 {[%clk 0:00:03.8]} 51... Ng4 {[%clk 0:00:24.3]} 52. Rb5+ {[%clk
0:00:04]} 52... Kd4 {[%clk 0:00:23.5]} 53. Ra5 {[%clk 0:00:03.9]} 53... Ne5+
{[%clk 0:00:22.1]} 54. Kg7 {[%clk 0:00:03.6]} 54... Rg2 {[%clk 0:00:21.1]} 55.
Kf6 {[%clk 0:00:03]} 55... Nd7+ {[%clk 0:00:20.2]} 56. Kg6 {[%clk 0:00:02.3]}
56... Ne5+ {[%clk 0:00:19.5]} 57. Kh5 {[%clk 0:00:03.2]} 57... Rh2+ {[%clk
0:00:18.3]} 58. Bh4 {[%clk 0:00:04.1]} 58... Nf3 {[%clk 0:00:17.9]} 59. Ra4+
{[%clk 0:00:05]} 59... Kd3 {[%clk 0:00:17.4]} 60. Ra3+ {[%clk 0:00:05.2]} 60...
Ke2 {[%clk 0:00:17.4]} 61. Rxf3 {[%clk 0:00:06.1]} 61... exf3 {[%clk 0:00:17.3]}
62. h7 {[%clk 0:00:07]} 62... f2 {[%clk 0:00:17.1]} 63. h8=Q {[%clk 0:00:07.9]}
63... f1=Q {[%clk 0:00:17.4]} 64. Qe8+ {[%clk 0:00:08.3]} 64... Kd1 {[%clk
0:00:16.5]} 65. Qd7+ {[%clk 0:00:08.3]} 65... Rd2 {[%clk 0:00:16.1]} 66. Qa4+
{[%clk 0:00:07.7]} 66... Rc2 {[%clk 0:00:14.2]} 67. Bg5 {[%clk 0:00:04.2]} 67...
Qh3+ {[%clk 0:00:13.1]} 68. Kg6 {[%clk 0:00:04.4]} 68... Qe6+ {[%clk 0:00:12.3]}
69. Kh5 {[%clk 0:00:04.2]} 69... Qf7+ {[%clk 0:00:09.7]} 70. Kh4 {[%clk
0:00:04.2]} 70... Qh7+ {[%clk 0:00:08.7]} 71. Kg4 {[%clk 0:00:04.7]} 71... Qd7+
{[%clk 0:00:08.2]} 72. Kh5 {[%clk 0:00:05.1]} 72... Qxa4 {[%clk 0:00:07.7]} 0-1

[Event "*** SCC Grand Prix: Titled Tuesday Blitz"]
[Site "Chess.com"]
[Date "2020.06.09"]
[Round "9"]
[White "kuba2006"]
[Black "Roza_Idrisova"]
[Result "0-1"]
[WhiteElo "2295"]
[BlackElo "2195"]
[TimeControl "180+1"]
[EndTime "10:48:07 PDT"]
[Termination "Roza_Idrisova won by checkmate"]

1. e4 {[%clk 0:03:00.9]} 1... c6 {[%clk 0:02:59.8]} 2. d4 {[%clk 0:03:00.4]}
2... d5 {[%clk 0:03:00.3]} 3. e5 {[%clk 0:03:00.8]} 3... c5 {[%clk 0:03:00.6]}
4. dxc5 {[%clk 0:03:00.6]} 4... e6 {[%clk 0:03:00.4]} 5. Be3 {[%clk 0:03:00.2]}
5... Qc7 {[%clk 0:02:58.3]} 6. Nf3 {[%clk 0:02:53.2]} 6... Bxc5 {[%clk
0:02:57.2]} 7. Bxc5 {[%clk 0:02:51.1]} 7... Qxc5 {[%clk 0:02:56.7]} 8. Nc3
{[%clk 0:02:39.9]} 8... Bd7 {[%clk 0:02:52.6]} 9. Bd3 {[%clk 0:02:35.9]} 9...
Ne7 {[%clk 0:02:51.8]} 10. O-O {[%clk 0:02:35]} 10... a6 {[%clk 0:02:50.9]} 11.
Ne2 {[%clk 0:02:32]} 11... Nbc6 {[%clk 0:02:49.9]} 12. c3 {[%clk 0:02:30.8]}
12... Ng6 {[%clk 0:02:48.4]} 13. Bxg6 {[%clk 0:02:14.8]} 13... hxg6 {[%clk
0:02:47.7]} 14. Ned4 {[%clk 0:02:14.7]} 14... Ne7 {[%clk 0:02:38.5]} 15. Qd2
{[%clk 0:02:03.5]} 15... Nf5 {[%clk 0:02:29.6]} 16. Nxf5 {[%clk 0:01:59.3]}
16... gxf5 {[%clk 0:02:29.2]} 17. Qg5 {[%clk 0:01:54.1]} 17... g6 {[%clk
0:02:28.8]} 18. Nd4 {[%clk 0:01:53.1]} 18... Qe7 {[%clk 0:02:25.1]} 19. Qxe7+
{[%clk 0:01:47.5]} 19... Kxe7 {[%clk 0:02:24.9]} 20. f4 {[%clk 0:01:47.8]} 20...
Rag8 {[%clk 0:02:17.2]} 21. Nf3 {[%clk 0:01:44.7]} 21... f6 {[%clk 0:02:16]} 22.
exf6+ {[%clk 0:01:43.6]} 22... Kxf6 {[%clk 0:02:16.1]} 23. Rfe1 {[%clk
0:01:40.9]} 23... Bc6 {[%clk 0:02:06.9]} 24. Re5 {[%clk 0:01:33.5]} 24... Rc8
{[%clk 0:02:03]} 25. Rae1 {[%clk 0:01:29.3]} 25... Bd7 {[%clk 0:02:02.9]} 26.
Nd4 {[%clk 0:01:18.3]} 26... Rhe8 {[%clk 0:01:59.2]} 27. h4 {[%clk 0:01:18.2]}
27... Re7 {[%clk 0:01:51.1]} 28. g3 {[%clk 0:01:17.2]} 28... Ree8 {[%clk
0:01:48.2]} 29. Kf2 {[%clk 0:01:15.9]} 29... a5 {[%clk 0:01:47.1]} 30. Ke3
{[%clk 0:00:52]} 30... b5 {[%clk 0:01:46.2]} 31. a3 {[%clk 0:00:44.8]} 31... b4
{[%clk 0:01:45.4]} 32. axb4 {[%clk 0:00:34.2]} 32... axb4 {[%clk 0:01:45.1]} 33.
Kd3 {[%clk 0:00:22.1]} 33... bxc3 {[%clk 0:01:44.4]} 34. bxc3 {[%clk 0:00:23]}
34... Ra8 {[%clk 0:01:42.7]} 35. Rb1 {[%clk 0:00:22.1]} 35... Ra2 {[%clk
0:01:37.9]} 36. Rb7 {[%clk 0:00:20.7]} 36... Re7 {[%clk 0:01:32.8]} 37. Ke3
{[%clk 0:00:12.7]} 37... Rg2 {[%clk 0:01:30.1]} 38. Kf3 {[%clk 0:00:12.1]} 38...
Rg1 {[%clk 0:01:28.2]} 39. Rc7 {[%clk 0:00:10.5]} 39... Rf1+ {[%clk 0:01:26.4]}
40. Ke2 {[%clk 0:00:09.9]} 40... Rc1 {[%clk 0:01:22.4]} 41. Kd2 {[%clk
0:00:08.9]} 41... Rg1 {[%clk 0:01:21.8]} 42. Ne2 {[%clk 0:00:06.9]} 42... Rg2
{[%clk 0:01:20.7]} 43. Ke3 {[%clk 0:00:06.8]} 43... Rxe2+ {[%clk 0:01:19.8]} 44.
Kxe2 {[%clk 0:00:04.1]} 44... Bb5+ {[%clk 0:01:19.6]} 45. c4 {[%clk 0:00:02.7]}
45... Rxc7 {[%clk 0:01:17.5]} 46. cxb5 {[%clk 0:00:02.9]} 46... Rb7 {[%clk
0:01:17.6]} 47. Kd2 {[%clk 0:00:02.7]} 47... Rxb5 {[%clk 0:01:17.7]} 48. Re3
{[%clk 0:00:02.8]} 48... Rb2+ {[%clk 0:01:17.2]} 49. Kc3 {[%clk 0:00:02.7]}
49... Rg2 {[%clk 0:01:15.9]} 50. Kd4 {[%clk 0:00:02.7]} 50... Rd2+ {[%clk
0:01:14.9]} 51. Kc5 {[%clk 0:00:02.3]} 51... Rc2+ {[%clk 0:01:10]} 52. Kd6
{[%clk 0:00:01.9]} 52... d4 {[%clk 0:00:56.4]} 53. Rxe6+ {[%clk 0:00:02.8]}
53... Kf7 {[%clk 0:00:56.3]} 54. Re5 {[%clk 0:00:03.3]} 54... Rc3 {[%clk
0:00:54.7]} 55. Rd5 {[%clk 0:00:03.6]} 55... Rxg3 {[%clk 0:00:54]} 56. Rxd4
{[%clk 0:00:04]} 56... Rg4 {[%clk 0:00:54]} 57. Ke5 {[%clk 0:00:04.8]} 57...
Rxh4 {[%clk 0:00:53.2]} 58. Rd7+ {[%clk 0:00:05.2]} 58... Kg8 {[%clk 0:00:52.1]}
59. Kf6 {[%clk 0:00:05]} 59... Rg4 {[%clk 0:00:51.5]} 60. Rd8+ {[%clk
0:00:04.6]} 60... Kh7 {[%clk 0:00:51.2]} 61. Kf7 {[%clk 0:00:04.7]} 61... Rxf4
{[%clk 0:00:49]} 62. Rd1 {[%clk 0:00:02.8]} 62... Rh4 {[%clk 0:00:48.3]} 63. Kf6
{[%clk 0:00:02.7]} 63... Kh6 {[%clk 0:00:47.2]} 64. Rd8 {[%clk 0:00:02.6]} 64...
Kh5 {[%clk 0:00:44.6]} 65. Rh8+ {[%clk 0:00:02.6]} 65... Kg4 {[%clk 0:00:44.6]}
66. Rg8 {[%clk 0:00:03.1]} 66... Rh6 {[%clk 0:00:42.6]} 67. Ke5 {[%clk
0:00:02.6]} 67... g5 {[%clk 0:00:40.9]} 68. Rf8 {[%clk 0:00:01.5]} 68... f4
{[%clk 0:00:40.9]} 69. Ke4 {[%clk 0:00:01.9]} 69... Re6+ {[%clk 0:00:40.2]} 70.
Kd3 {[%clk 0:00:02.2]} 70... Re1 {[%clk 0:00:39.5]} 71. Rf7 {[%clk 0:00:02.4]}
71... f3 {[%clk 0:00:39.2]} 72. Kd2 {[%clk 0:00:03]} 72... Re8 {[%clk
0:00:38.1]} 73. Kd3 {[%clk 0:00:03.2]} 73... Kg3 {[%clk 0:00:37.7]} 74. Rf5
{[%clk 0:00:03.4]} 74... g4 {[%clk 0:00:37.9]} 75. Kd2 {[%clk 0:00:02.7]} 75...
f2 {[%clk 0:00:37.4]} 76. Kd3 {[%clk 0:00:02.7]} 76... Kg2 {[%clk 0:00:37]} 77.
Rf4 {[%clk 0:00:02.4]} 77... g3 {[%clk 0:00:37.2]} 78. Rf6 {[%clk 0:00:02]}
78... f1=Q+ {[%clk 0:00:37.1]} 79. Rxf1 {[%clk 0:00:02.9]} 79... Kxf1 {[%clk
0:00:37.3]} 80. Kc4 {[%clk 0:00:03.4]} 80... g2 {[%clk 0:00:37.5]} 81. Kd5
{[%clk 0:00:03.9]} 81... g1=Q {[%clk 0:00:37.7]} 82. Kc4 {[%clk 0:00:04.4]}
82... Qg4+ {[%clk 0:00:36.4]} 83. Kd5 {[%clk 0:00:04.9]} 83... Rf8 {[%clk
0:00:34.7]} 84. Kd6 {[%clk 0:00:04.6]} 84... Rf5 {[%clk 0:00:35.2]} 85. Ke6
{[%clk 0:00:04.3]} 85... Qg6+ {[%clk 0:00:36.1]} 86. Ke7 {[%clk 0:00:04.6]}
86... Rf7+ {[%clk 0:00:37]} 87. Ke8 {[%clk 0:00:05]} 87... Qg8# {[%clk
0:00:37.9]} 0-1

[Event "*** SCC Grand Prix: Titled Tuesday Blitz"]
[Site "Chess.com"]
[Date "2020.06.09"]
[Round "9"]
[White "PauloFanha"]
[Black "szefru"]
[Result "0-1"]
[WhiteElo "1983"]
[BlackElo "2136"]
[TimeControl "180+1"]
[EndTime "10:48:07 PDT"]
[Termination "szefru won on time"]

1. e4 {[%clk 0:03:00.9]} 1... e5 {[%clk 0:02:59.6]} 2. Bc4 {[%clk 0:03:00.3]}
2... Nc6 {[%clk 0:03:00]} 3. Nf3 {[%clk 0:02:59.1]} 3... Nd4 {[%clk 0:03:00.2]}
4. O-O {[%clk 0:02:57]} 4... d6 {[%clk 0:02:58.2]} 5. c3 {[%clk 0:02:54.2]} 5...
Nxf3+ {[%clk 0:02:57.8]} 6. Qxf3 {[%clk 0:02:53.8]} 6... Qf6 {[%clk 0:02:58.7]}
7. Qxf6 {[%clk 0:02:51.7]} 7... Nxf6 {[%clk 0:02:59.6]} 8. Re1 {[%clk
0:02:49.6]} 8... c6 {[%clk 0:02:58.6]} 9. d4 {[%clk 0:02:49.2]} 9... a5 {[%clk
0:02:58]} 10. Bg5 {[%clk 0:02:42.4]} 10... Be7 {[%clk 0:02:57.5]} 11. Bh4 {[%clk
0:02:37.5]} 11... O-O {[%clk 0:02:57.1]} 12. Bg3 {[%clk 0:02:36.9]} 12... exd4
{[%clk 0:02:55.2]} 13. cxd4 {[%clk 0:02:35.6]} 13... b5 {[%clk 0:02:55]} 14. Bd3
{[%clk 0:02:34]} 14... b4 {[%clk 0:02:52.7]} 15. a3 {[%clk 0:02:26.7]} 15... c5
{[%clk 0:02:42.8]} 16. e5 {[%clk 0:02:16.3]} 16... dxe5 {[%clk 0:02:41]} 17.
Bxe5 {[%clk 0:02:11.8]} 17... Be6 {[%clk 0:02:35]} 18. dxc5 {[%clk 0:02:04.4]}
18... Bxc5 {[%clk 0:02:33.4]} 19. Bxf6 {[%clk 0:02:00.1]} 19... gxf6 {[%clk
0:02:33]} 20. Be4 {[%clk 0:01:53.1]} 20... Rad8 {[%clk 0:02:30.7]} 21. axb4
{[%clk 0:01:52.3]} 21... Bxb4 {[%clk 0:02:30.4]} 22. Nc3 {[%clk 0:01:43.5]}
22... Rd2 {[%clk 0:02:28.4]} 23. Reb1 {[%clk 0:01:29.6]} 23... f5 {[%clk
0:02:26.1]} 24. Bf3 {[%clk 0:01:23.6]} 24... Bc4 {[%clk 0:02:14.7]} 25. h3
{[%clk 0:01:12.1]} 25... Bd3 {[%clk 0:02:11.6]} 26. Rd1 {[%clk 0:01:10.6]} 26...
Rxd1+ {[%clk 0:02:03.6]} 27. Rxd1 {[%clk 0:01:10.6]} 27... Bc2 {[%clk
0:02:03.1]} 28. Rd2 {[%clk 0:01:06.7]} 28... Bb3 {[%clk 0:02:02]} 29. Bd5 {[%clk
0:01:01.8]} 29... Bxc3 {[%clk 0:01:56.6]} 30. bxc3 {[%clk 0:00:59.1]} 30... a4
{[%clk 0:01:55.9]} 31. Bxb3 {[%clk 0:00:40.5]} 31... axb3 {[%clk 0:01:56.8]} 32.
c4 {[%clk 0:00:37.9]} 32... Rb8 {[%clk 0:01:55]} 33. Rb2 {[%clk 0:00:36.7]}
33... Kf8 {[%clk 0:01:55.3]} 34. Kf1 {[%clk 0:00:37]} 34... Ke7 {[%clk
0:01:55.6]} 35. Ke2 {[%clk 0:00:37.6]} 35... Kd6 {[%clk 0:01:56]} 36. Kd3 {[%clk
0:00:38.1]} 36... Kc5 {[%clk 0:01:47.6]} 37. Kc3 {[%clk 0:00:38.4]} 37... Rb4
{[%clk 0:01:47.7]} 38. Rxb3 {[%clk 0:00:38.3]} 38... Rxc4+ {[%clk 0:01:47.7]}
39. Kd3 {[%clk 0:00:38.7]} 39... Rd4+ {[%clk 0:01:47.4]} 40. Ke3 {[%clk
0:00:38.1]} 40... Rd7 {[%clk 0:01:39.1]} 41. Rc3+ {[%clk 0:00:33.4]} 41... Kb4
{[%clk 0:01:35.1]} 42. Rc2 {[%clk 0:00:31.8]} 42... Kb3 {[%clk 0:01:33.5]} 43.
Rc5 {[%clk 0:00:29.6]} 43... Kb4 {[%clk 0:01:24]} 44. Rxf5 {[%clk 0:00:28.1]}
44... Kc4 {[%clk 0:01:24.2]} 45. Rh5 {[%clk 0:00:25.6]} 45... f6 {[%clk
0:01:23.9]} 46. Rh6 {[%clk 0:00:24.6]} 46... Rf7 {[%clk 0:01:22.8]} 47. Ke4
{[%clk 0:00:23.7]} 47... Kc5 {[%clk 0:01:22.4]} 48. Kf5 {[%clk 0:00:22.7]} 48...
Rg7 {[%clk 0:01:22.3]} 49. g3 {[%clk 0:00:21.6]} 49... Rd7 {[%clk 0:01:18.5]}
50. Rxf6 {[%clk 0:00:21]} 50... Kd4 {[%clk 0:01:17.9]} 51. Kg4 {[%clk 0:00:20]}
51... Ke5 {[%clk 0:01:15.8]} 52. Rf5+ {[%clk 0:00:19.4]} 52... Ke6 {[%clk
0:01:15.4]} 53. f4 {[%clk 0:00:17.4]} 53... Rg7+ {[%clk 0:01:14.3]} 54. Rg5
{[%clk 0:00:17.1]} 54... Ra7 {[%clk 0:01:14.1]} 55. h4 {[%clk 0:00:14.8]} 55...
Kf6 {[%clk 0:01:13.2]} 56. h5 {[%clk 0:00:15.3]} 56... Ra3 {[%clk 0:01:11.1]}
57. Rf5+ {[%clk 0:00:13]} 57... Kg7 {[%clk 0:01:10.5]} 58. Re5 {[%clk
0:00:11.9]} 58... Kf6 {[%clk 0:01:09.4]} 59. Rb5 {[%clk 0:00:11.1]} 59... Ra6
{[%clk 0:01:08.6]} 60. Rb7 {[%clk 0:00:10.1]} 60... h6 {[%clk 0:01:07.8]} 61.
Rh7 {[%clk 0:00:08.8]} 61... Ra3 {[%clk 0:01:02.1]} 62. Rxh6+ {[%clk 0:00:09.2]}
62... Kg7 {[%clk 0:01:02.6]} 63. Rb6 {[%clk 0:00:08.9]} 63... Rb3 {[%clk
0:01:02]} 64. f5 {[%clk 0:00:08.4]} 64... Rxb6 {[%clk 0:01:01.7]} 65. Kg5 {[%clk
0:00:07.4]} 65... Rd6 {[%clk 0:01:00.8]} 66. g4 {[%clk 0:00:08]} 66... Ra6
{[%clk 0:00:47.2]} 67. Kf4 {[%clk 0:00:08.1]} 67... Ra4+ {[%clk 0:00:43.8]} 68.
Kg5 {[%clk 0:00:07.5]} 68... Ra6 {[%clk 0:00:40.4]} 69. Kf4 {[%clk 0:00:06.9]}
69... Kh6 {[%clk 0:00:31]} 70. Ke5 {[%clk 0:00:06.2]} 70... Kg5 {[%clk
0:00:30.3]} 71. h6 {[%clk 0:00:03.5]} 71... Rxh6 {[%clk 0:00:28.4]} 72. Kd5
{[%clk 0:00:02.4]} 72... Kxg4 {[%clk 0:00:27.1]} 73. Ke5 {[%clk 0:00:03]} 73...
Kg5 {[%clk 0:00:26]} 74. Ke4 {[%clk 0:00:02.3]} 74... Rf6 {[%clk 0:00:25.3]} 75.
Ke5 {[%clk 0:00:01.8]} 75... Rxf5+ {[%clk 0:00:24.9]} 0-1

[Event "*** SCC Grand Prix: Titled Tuesday Blitz"]
[Site "Chess.com"]
[Date "2020.06.09"]
[Round "9"]
[White "Hrant_ChessMood"]
[Black "KuzubovYuriy"]
[Result "1-0"]
[WhiteElo "3079"]
[BlackElo "2784"]
[TimeControl "180+1"]
[EndTime "10:48:08 PDT"]
[Termination "Hrant_ChessMood won by resignation"]

1. d4 {[%clk 0:03:00.9]} 1... Nf6 {[%clk 0:02:59.8]} 2. c4 {[%clk 0:03:01.3]}
2... e6 {[%clk 0:03:00.3]} 3. Nf3 {[%clk 0:03:00.6]} 3... d5 {[%clk 0:03:00.4]}
4. Nc3 {[%clk 0:03:00.6]} 4... Nbd7 {[%clk 0:02:59.8]} 5. Qc2 {[%clk 0:02:59.9]}
5... c5 {[%clk 0:02:57.7]} 6. cxd5 {[%clk 0:02:57.1]} 6... Nxd5 {[%clk
0:02:58.6]} 7. Nxd5 {[%clk 0:02:50.2]} 7... exd5 {[%clk 0:02:58.6]} 8. Bg5
{[%clk 0:02:46.4]} 8... Qb6 {[%clk 0:02:54.1]} 9. Rc1 {[%clk 0:02:29.3]} 9... h6
{[%clk 0:02:42.5]} 10. Bd2 {[%clk 0:02:10.5]} 10... cxd4 {[%clk 0:02:26.6]} 11.
g3 {[%clk 0:02:10.1]} 11... Be7 {[%clk 0:02:22.1]} 12. Bg2 {[%clk 0:02:06.2]}
12... O-O {[%clk 0:02:21.3]} 13. O-O {[%clk 0:02:06.6]} 13... Bf6 {[%clk
0:02:17.2]} 14. Bf4 {[%clk 0:01:52.2]} 14... Re8 {[%clk 0:02:14.6]} 15. Rfd1
{[%clk 0:01:47]} 15... Nf8 {[%clk 0:01:55.4]} 16. Bc7 {[%clk 0:01:36.1]} 16...
Qa6 {[%clk 0:01:51.7]} 17. Nxd4 {[%clk 0:01:28.5]} 17... Bxd4 {[%clk 0:01:47.7]}
18. Rxd4 {[%clk 0:01:29.4]} 18... Rxe2 {[%clk 0:01:45.7]} 19. Rd2 {[%clk
0:01:12.3]} 19... Rxd2 {[%clk 0:01:40.7]} 20. Qxd2 {[%clk 0:01:13.2]} 20... Be6
{[%clk 0:01:39.2]} 21. a3 {[%clk 0:00:48.8]} 21... Qb5 {[%clk 0:01:31.2]} 22.
Be5 {[%clk 0:00:45.5]} 22... Ng6 {[%clk 0:01:27.8]} 23. Bd4 {[%clk 0:00:44.4]}
23... Ne7 {[%clk 0:01:26.8]} 24. Rc5 {[%clk 0:00:36.7]} 24... Qd7 {[%clk
0:01:24.2]} 25. b4 {[%clk 0:00:28.3]} 25... Rc8 {[%clk 0:01:19.2]} 26. Rxc8+
{[%clk 0:00:25.6]} 26... Nxc8 {[%clk 0:01:19.8]} 27. h4 {[%clk 0:00:23.7]} 27...
a6 {[%clk 0:01:17.1]} 28. Qc3 {[%clk 0:00:19.7]} 28... f6 {[%clk 0:01:16]} 29.
Qc5 {[%clk 0:00:18.4]} 29... Ne7 {[%clk 0:01:13.7]} 30. a4 {[%clk 0:00:13.9]}
30... Nf5 {[%clk 0:01:10.5]} 31. Bc3 {[%clk 0:00:10.1]} 31... Qc6 {[%clk
0:01:03.8]} 32. Qxc6 {[%clk 0:00:07.2]} 32... bxc6 {[%clk 0:01:04.7]} 33. Bf1
{[%clk 0:00:07.8]} 33... Bc8 {[%clk 0:01:04.1]} 34. Bd3 {[%clk 0:00:07.3]} 34...
Ne7 {[%clk 0:01:00]} 35. f3 {[%clk 0:00:07.5]} 35... Kf7 {[%clk 0:00:59.4]} 36.
Kf2 {[%clk 0:00:07.5]} 36... Nf5 {[%clk 0:00:53.1]} 37. h5 {[%clk 0:00:06.2]}
37... Nd6 {[%clk 0:00:51.4]} 38. Bd4 {[%clk 0:00:06.2]} 38... Nc4 {[%clk
0:00:50.5]} 39. g4 {[%clk 0:00:05.7]} 39... Ne5 {[%clk 0:00:49]} 40. Be2 {[%clk
0:00:05.7]} 40... Ke7 {[%clk 0:00:47.3]} 41. Bc5+ {[%clk 0:00:06.1]} 41... Ke6
{[%clk 0:00:46]} 42. Ke3 {[%clk 0:00:07]} 42... Nd7 {[%clk 0:00:39.9]} 43. Bd4
{[%clk 0:00:06.6]} 43... Kd6 {[%clk 0:00:38.6]} 44. f4 {[%clk 0:00:05.9]} 44...
c5 {[%clk 0:00:35.6]} 45. bxc5+ {[%clk 0:00:06.8]} 45... Nxc5 {[%clk 0:00:35.1]}
46. a5 {[%clk 0:00:06.3]} 46... Nb3 {[%clk 0:00:30.9]} 47. Bc3 {[%clk
0:00:05.1]} 47... d4+ {[%clk 0:00:30.1]} 48. Bxd4 {[%clk 0:00:05.6]} 48... Nxa5
{[%clk 0:00:30]} 49. Bc3 {[%clk 0:00:03.9]} 49... Nc6 {[%clk 0:00:28.6]} 50. Bb2
{[%clk 0:00:04.5]} 50... Ne7 {[%clk 0:00:27.3]} 51. Ba3+ {[%clk 0:00:04.9]}
51... Kd7 {[%clk 0:00:26.7]} 52. Bc4 {[%clk 0:00:05]} 52... Bb7 {[%clk 0:00:26]}
53. f5 {[%clk 0:00:03.6]} 53... Ke8 {[%clk 0:00:24.4]} 54. Kd4 {[%clk
0:00:03.4]} 54... Nc6+ {[%clk 0:00:21.7]} 55. Kc5 {[%clk 0:00:03.7]} 55... Ne5
{[%clk 0:00:21.8]} 56. Be2 {[%clk 0:00:02.2]} 56... Bf3 {[%clk 0:00:20.8]} 57.
Bxf3 {[%clk 0:00:01.8]} 57... Nxf3 {[%clk 0:00:20.6]} 58. Kd5 {[%clk 0:00:01.2]}
58... Nh2 {[%clk 0:00:19.2]} 59. Ke6 {[%clk 0:00:01.2]} 59... Nxg4 {[%clk
0:00:19.2]} 60. Bb4 {[%clk 0:00:02.1]} 60... Ne3 {[%clk 0:00:17.9]} 61. Bd2
{[%clk 0:00:02.1]} 61... Ng2 {[%clk 0:00:17.5]} 62. Kd5 {[%clk 0:00:01.8]} 62...
a5 {[%clk 0:00:16.1]} 63. Ke4 {[%clk 0:00:02.2]} 63... a4 {[%clk 0:00:16.3]} 64.
Kf3 {[%clk 0:00:02.8]} 64... Nh4+ {[%clk 0:00:15.6]} 65. Kg4 {[%clk 0:00:03.3]}
65... Nxf5 {[%clk 0:00:15.2]} 66. Kxf5 {[%clk 0:00:03.7]} 66... Kf7 {[%clk
0:00:15.3]} 67. Bb4 {[%clk 0:00:03.8]} 67... Kg8 {[%clk 0:00:14.3]} 68. Kg6
{[%clk 0:00:04.3]} 68... f5 {[%clk 0:00:13.2]} 69. Kxf5 {[%clk 0:00:03.7]} 69...
Kf7 {[%clk 0:00:13.1]} 70. Ba3 {[%clk 0:00:04.2]} 70... Kg8 {[%clk 0:00:04.2]}
71. Kg6 {[%clk 0:00:04.2]} 71... Kh8 {[%clk 0:00:04.2]} 72. Bb4 {[%clk
0:00:04.7]} 72... Kg8 {[%clk 0:00:04.4]} 73. Bc5 {[%clk 0:00:05.3]} 73... Kh8
{[%clk 0:00:04.6]} 74. Ba3 {[%clk 0:00:05.9]} 74... Kg8 {[%clk 0:00:05]} 75. Bb2
{[%clk 0:00:06.6]} 1-0